Cogmind - Beta 12 @@@ ROGUE MODE // 2023.03.26 @ 23:35:41 Player: hansy Result: Destroyed by G-67 Veteran with Field Laser Performance ------------- Evolutions (4) 2000 Regions Visited (9) 1800 Robots Destroyed (164) 820 Value Destroyed (8577) 8577 Prototype IDs (34) 680 Alien Tech Used (0) 0 Bonus (3103) 3103 TOTAL SCORE: 16980 Bonus ------- High Alert Combat Kills 2095 Follower Combat Kills 329 Entered Garrisons 400 Aligned with FarCom 300 Friendly Fire -21 Cogmind --------- Core Integrity 0/850 Matter 137/300 Energy 310/310 System Corruption 15% Temperature Cool (21) Movement Core (200) Ox3 Location -6/Factory Parts ------- > --- POWER (2) -------- Fission Core > --- PROPULSION (4) --- (None) > --- UTILITY (6) ------ Machine Analyzer Enhanced Optical Array > --- WEAPON (3) ------- (None) > --- INVENTORY (5) ---- Reinforced Deuterium Engine High-capacity Matter Pod (200) Authchip [Propulsion] Sensor Drone Bay (20/20) Improved Datajack Peak State ------------ > --- POWER ------------ Light Antimatter Reactor Light Quantum Reactor > --- PROPULSION ------- Advanced VSS Leg Advanced VSS Leg Potential Leg Potential Leg > --- UTILITY ---------- Improved Cooling System High-capacity Storage Unit Machine Analyzer Advanced Targeting Computer Core Analyzer Hacking Suite > --- WEAPON ----------- Phase Cannon Phase Cannon Hypervelocity Gauss Rifle > --- INVENTORY -------- Fission Core Advanced VSS Leg Armored Huge Wheel Improved Cooling System High-capacity Matter Pod Gravity Neutralizer Focal Shield Force Field Authchip [Propulsion] System Restoration Module System Restoration Module Sensor Drone Bay Phase Cannon Phase Cannon Hypervelocity Gauss Rifle Hypervelocity Gauss Rifle Rocket Array Long-range Missile Launcher Datajack [Rating: 92] Favorites ----------- Power Improved Deuterium Engine Engine Improved Deuterium Engine Power Core Micro Nuclear Core Reactor Light Antimatter Reactor Propulsion Potential Leg Treads Light Treads Leg Potential Leg Utility Hacking Suite Device Improved Heat Sink Storage Large Storage Unit Processor Core Analyzer Hackware Hacking Suite Protection Medium Armor Plating Weapon Gauss Cannon Energy Gun Advanced Beam Rifle Energy Cannon Phase Cannon Ballistic Gun Hypervelocity Gauss Rifle Ballistic Cannon Gauss Cannon Launcher Long-range Missile Launcher Special Melee Weapon Datajack Build | -11 -10 -10 -10 -9 -8 -8 -7 -7 -6 ------- Run | Jun Mat Min Exi Min Mat Gar Fac Gar Fac Slots Evolved 8 | . . . . . 4 . 2 . 2 Power 1 | . . . . . . . . . 1 Propulsion 2 | . . . . . 1 . 1 . . Utility 4 | . . . . . 2 . 1 . 1 Weapon 1 | . . . . . 1 . . . . Parts Attached 137 | 7 7 1 . . 34 7 17 33 31 Power 16 | 1 . . . . 4 1 4 2 4 Engine 11 | 1 . . . . 3 1 3 1 2 Core 3 | . . . . . 1 . 1 . 1 Reactor 2 | . . . . . . . . 1 1 Propulsion 24 | 2 . . . . 9 2 3 3 5 Treads 7 | 2 . . . . 5 . . . . Leg 17 | . . . . . 4 2 3 3 5 Wheel . | . . . . . . . . . . Hover . | . . . . . . . . . . Flight . | . . . . . . . . . . Utility 38 | 1 5 1 . . 6 1 5 8 11 Device 26 | . 2 1 . . 3 1 3 8 8 Storage 4 | 1 2 . . . . . 1 . . Processor 4 | . . . . . 1 . 1 . 2 Hackware 2 | . . . . . 1 . . . 1 Protection 2 | . 1 . . . 1 . . . . Artifact . | . . . . . . . . . . Weapon 59 | 3 2 . . . 15 3 5 20 11 Energy Gun 11 | 3 . . . . 6 . 2 . . Energy Cannon 9 | . 1 . . . 1 . . 3 4 Ballistic Gun 15 | . 1 . . . 2 . 1 8 3 Ballistic Cannon 9 | . . . . . 5 2 . 2 . Launcher 10 | . . . . . 1 . 2 4 3 Special Weapon . | . . . . . . . . . . Impact Weapon . | . . . . . . . . . . Slashing Weapon . | . . . . . . . . . . Piercing Weapon . | . . . . . . . . . . Special Melee Weapon 5 | . . . . . . 1 . 3 1 Unidentified Prototypes 7 | . . . . . 4 . 2 1 . Corrupted Parts 3 | . . . . . . . . 1 2 System Corruption 12 | . . . . . . . . 1 11 Parts Lost 33 | . 1 1 . . 10 . . . 21 Power 6 | . . . . . 2 . . . 4 Propulsion 6 | . . . . . 3 . . . 3 Utility 12 | . 1 1 . . 2 . . . 8 Weapon 9 | . . . . . 3 . . . 6 Highest Loss Streak 13 | . 1 1 . . 3 . . . 13 To Critical Strikes . | . . . . . . . . . . Average Slot Usage (%) 97 | . 94 99 100 100 97 100 99 99 89 Engine 6 | . 14 14 14 14 6 7 4 1 1 Core 1 | . . . . . 2 1 2 4 . Treads 11 | . 28 28 28 28 20 . . . . Leg 15 | . . . . . 5 27 30 29 20 Device 9 | . 8 13 14 14 11 9 6 7 8 Storage 9 | . 14 14 14 14 9 9 7 7 5 Processor 8 | . . . . . 4 9 15 15 15 Hackware 6 | . . . . . 8 9 7 7 6 Energy Gun 4 | . 7 . . . 9 . 5 1 . Energy Cannon 7 | . 8 14 14 14 5 9 1 10 10 Ballistic Gun 5 | . 11 14 14 14 2 . 5 6 5 Ballistic Cannon 6 | . . . . . 9 17 8 2 . Naked Turns . | . . . . . . . . . . Heaviest Build 95 | 12 29 29 29 29 50 50 70 76 95 Greatest Support 96 | 40 40 40 40 40 75 80 96 96 96 Greatest Overweight (x) 20 | . . . . . 1 . . . 20 Average Overweight (x) . | . . . . . . . . . . Largest Inventory Capacity 20 | 8 15 15 15 15 15 15 20 20 20 Average Capacity 16 | 6 11 15 15 15 15 15 19 20 19 Most Carried 20 | 5 11 13 14 14 15 15 20 20 20 Average Carried 15 | 2 7 12 12 14 14 14 17 19 16 Final Capacity 20 | 8 15 15 15 15 15 15 20 20 5 Final Carried 20 | 2 11 12 14 14 15 15 20 20 5 Class Distribution -------------------- 34% | Scavenger-Skirmisher 26% | Scavenger-Gunner 20% | Mutant 7% | Skirmisher 7% | Scavenger-Mutant Dominant Class ---------------- Mutant | -10/Materials Mutant | -10/Mines Mutant | -10/Exiles Mutant | -9/Mines Scavenger-Skirmisher | -8/Materials Scavenger-Skirmisher | -8/Garrison Scavenger-Gunner | -7/Factory Scavenger-Gunner | -7/Garrison Scavenger-Gunner | -6/Factory Resources | -11 -10 -10 -10 -9 -8 -8 -7 -7 -6 ----------- Run | Jun Mat Min Exi Min Mat Gar Fac Gar Fac Matter Collected 3742 | 151 474 56 . . 676 742 406 816 421 Remotely . | . . . . . . . . . . Salvage Created 6556 | . 577 155 . . 1596 894 611 1348 1375 Parts 300 | . 28 15 . . 70 50 23 59 55 Haulers Intercepted 4 | . 1 . . . 2 . 1 . . Recyclers Shooed 1 | . 1 . . . . . . . . Parts Field Recycled . | . . . . . . . . . . Retrieved Matter . | . . . . . . . . . . Parts Self-Destructed . | . . . . . . . . . . Prevented . | . . . . . . . . . . Kills | -11 -10 -10 -10 -9 -8 -8 -7 -7 -6 ------- Run | Jun Mat Min Exi Min Mat Gar Fac Gar Fac Combat Hostiles Destroyed 132 | . 11 5 . . 26 27 11 26 26 Melee 1 | . . . . . . . . . 1 Guns 30 | . 4 3 . . 11 . 3 4 5 Cannons 76 | . 7 2 . . 13 25 5 16 8 AOE 20 | . . . . . 1 . 3 5 11 Classes Destroyed 18 | . 5 2 . . 5 2 2 1 1 Worker 5 | . . 1 . . . . 1 . 3 Builder 6 | . . . . . 1 . 1 . 4 Tunneler 1 | . . . . . 1 . . . . Hauler 4 | . 1 . . . 2 . 1 . . Recycler 5 | . 1 . . . 3 . 1 . . Operator 3 | . 1 . . . 1 . . . 1 Watcher 8 | . 2 . . . 5 . 1 . . Swarmer 11 | . . 3 . . . 7 . 1 . Saboteur 1 | . . . . . . . . . 1 Grunt 79 | . 11 2 . . 20 15 4 14 13 Brawler 5 | . . . . . . 1 . . 4 Duelist 10 | . . . . . . . 2 2 6 Protector 3 | . . . . . . . 1 . 2 Sentry 15 | . . . . . 4 3 2 6 . Specialist 1 | . . . . . 1 . . . . Hunter 1 | . . . . . . . . 1 . Programmer 4 | . . . . . . . 2 2 . Heavy 1 | . . . . . 1 . . . . Butcher 1 | . . . . . . 1 . . . Best Kill Streak 13 | . 3 4 . . 3 6 7 9 13 Combat Bots Only 9 | . 3 3 . . 3 6 6 9 9 Max Kills in Single Turn 7 | . 1 2 . . 2 2 4 4 7 Gunslinging . | . . . . . . . . . . Exploded 4 | . . . . . 1 . 3 4 3 Melee 1 | . . . . . . . . . 1 Uniques/NPCs Destroyed . | . . . . . . . . . . Combat | -11 -10 -10 -10 -9 -8 -8 -7 -7 -6 -------- Run | Jun Mat Min Exi Min Mat Gar Fac Gar Fac Damage Taken 7015 | . 465 148 . . 1770 742 239 697 2954 Core 1427 | . 116 20 . . 184 77 22 144 864 Absorbed by Shields 37 | . . . . . . . . . 37 Regen/Repaired (Parts) 42 | . . . . . . . 42 . . Core Remaining (%) 68 | 100 . . . 45 . 52 . 76 . Volleys Fired 337 | . 38 9 . . 92 56 26 67 49 Largest 3 | . 2 2 . . 3 3 3 3 3 Hottest 213 | . 80 80 . . 164 164 164 213 203 Shots Fired 837 | . 76 18 . . 269 149 66 143 116 Gun 326 | . 54 9 . . 130 . 33 54 46 Cannon 496 | . 22 9 . . 138 149 32 83 63 Launcher 15 | . . . . . 1 . 1 6 7 Special . | . . . . . . . . . . Kinetic 416 | . 38 9 . . 120 94 46 63 46 Thermal 361 | . 38 9 . . 103 55 19 74 63 Explosive 15 | . . . . . 1 . 1 6 7 Electromagnetic 45 | . . . . . 45 . . . . Robot Hit Streak 29 | . 15 4 . . 15 9 12 24 29 Robot Miss Streak 5 | . 4 2 . . 5 4 4 2 3 Penetration Max 2 | . . . . . . 1 . 1 2 Secondary Targets 3 | . . . . . 3 . . . . Max Gunslinging Chain 1 | . . . . . 1 . . . . Shots Hit Robots 494 | . 53 11 . . 167 76 33 75 79 Core Hits 335 | . 24 8 . . 71 38 41 53 100 Critical Kills 12 | . 1 . . . . 2 . 6 3 Critical Parts Destroyed 12 | . . . . . . . . 5 7 Critical Strikes 50 | . 1 . . . 11 11 3 14 10 Burn 4 | . . . . . 2 . 1 1 . Meltdown 4 | . . . . . . 2 . 1 1 Destroy 21 | . 1 . . . . . . 11 9 Blast 19 | . . . . . 7 9 2 1 . Corrupt 2 | . . . . . 2 . . . . Melee Attacks . | . . . . . . . . . . Impact . | . . . . . . . . . . Slashing . | . . . . . . . . . . Piercing . | . . . . . . . . . . Sneak Attacks . | . . . . . . . . . . Combat Hostiles . | . . . . . . . . . . Follow-up Attacks . | . . . . . . . . . . Damage Inflicted 14521 | . 801 187 . . 3576 2178 1378 2477 3924 Guns 2900 | . 468 95 . . 1355 . 427 250 305 Cannons 7484 | . 333 92 . . 1865 2178 420 1281 1315 Explosions 4136 | . . . . . 356 . 531 946 2303 Melee . | . . . . . . . . . . Ramming 1 | . . . . . . . . . 1 Kinetic 4547 | . 313 95 . . 1444 1447 620 323 305 Thermal 5418 | . 488 92 . . 1357 731 227 1208 1315 Explosive 3859 | . . . . . 109 . 531 946 2273 Electromagnetic 696 | . . . . . 666 . . . 30 Impact . | . . . . . . . . . . Slashing . | . . . . . . . . . . Piercing . | . . . . . . . . . . Highest Corruption 19 | . 1 1 1 1 2 2 1 1 19 Average Corruption 2 | . 1 1 1 1 2 2 1 1 13 Corruption Purged 8 | . . . . . . . 1 2 5 Corruption Blocked . | . . . . . . . . . . Effects 73 | . . 1 1 2 32 16 1 . 20 Message Errors 9 | . . . . . 4 1 . . 4 Matter Fused 23 | . . . . 1 11 5 . . 6 Heat Flow Errors 11 | . . . . 1 5 3 . . 2 Energy Discharges 6 | . . . . . 1 2 1 . 2 Parts Fused 1 | . . . . . 1 . . . . Data Loss (minor) 10 | . . 1 1 . 3 4 . . 1 Data Loss (major) 1 | . . . . . 1 . . . . Misfires 3 | . . . . . 2 1 . . . Alerts 1 | . . . . . 1 . . . . Misdirections 1 | . . . . . . . . . 1 Weapon Failures 7 | . . . . . 3 . . . 4 Overload Shots . | . . . . . . . . . . Overflow Damage 156 | . . . . . 26 33 13 47 37 Projectiles 96 | . . . . . 11 33 5 40 7 Explosions 60 | . . . . . 15 . 8 7 30 Melee . | . . . . . . . . . . Knockbacks 19 | . . . . . 5 13 1 . . Impact . | . . . . . . . . . . Kinetic 18 | . . . . . 5 12 1 . . Secondary 1 | . . . . . . 1 . . . Self-Inflicted Damage 411 | . . . . . 78 . . 9 324 Shots 12 | . . . . . 2 . . 1 9 Rammed 2 | . . . . . 1 . . . 1 Targets Rammed 2 | . . . . . 1 . . . 1 Kicked . | . . . . . . . . . . Crushed . | . . . . . . . . . . Highest Temperature 547 | . 138 66 . 251 243 349 189 375 547 Average Temperature 84 | . 46 23 . 136 65 68 58 90 178 Received Heat Transfer 2188 | . 156 42 . . 615 342 57 315 661 Effects 7 | . . . . . . 3 . 1 3 Shutdowns 1 | . . . . . . . . . 1 Interference 3 | . . . . . . 3 . . . Short Circuit 1 | . . . . . . . . . 1 Damage (minor) 1 | . . . . . . . . 1 . Damage (core) 1 | . . . . . . . . . 1 Siege Activations . | . . . . . . . . . . Robots Corrupted . | . . . . . . . . . . Combat Hostiles . | . . . . . . . . . . Parts Fried 2 | . . . . . 1 . . 1 . Impact Corruptions . | . . . . . . . . . . Robots Melted 5 | . . . . . 1 2 . 1 1 Combat Hostiles 5 | . . . . . 1 2 . 1 1 Parts Melted 15 | . . 1 . . 9 1 . 2 2 Heat Transferred 8767 | . 1110 185 . . 2951 1201 425 1304 1591 Parts Sabotaged 6 | . . . . . . . . . 6 Parts Stolen . | . . . . . . . . . . Parts Stripped . | . . . . . . . . . . Power Chain Reactions 4 | . . . . . 4 . . . . Missiles Intercepted . | . . . . . . . . . . Alert | -11 -10 -10 -10 -9 -8 -8 -7 -7 -6 ------- Run | Jun Mat Min Exi Min Mat Gar Fac Gar Fac Peak Influence 1816 | . 195 144 . . 385 1260 773 1816 1333 Initial 953 | . . 19 . . . 135 661 446 953 Average 559 | . 59 92 . . 163 802 675 1230 1057 Maximum Alert Level 5 | . . . . . 1 4 3 5 4 Low Security (%) 33 | 100 100 100 . 100 56 7 . . . Level 1 14 | . . . . . 43 11 . . . Level 2 13 | . . . . . . 12 53 18 . Level 3 20 | . . . . . . 49 46 7 69 Level 4 12 | . . . . . . 19 . 47 30 Level 5 4 | . . . . . . . . 26 . High Security . | . . . . . . . . . . Max Security . | . . . . . . . . . . Squads Dispatched 24 | . 4 . . . 6 . 7 . 7 Investigation 9 | . 3 . . . 2 . 4 . . Extermination 1 | . . . . . . . 1 . . Reinforcement 9 | . 1 . . . 4 . 1 . 3 Assault 5 | . . . . . . . 1 . 4 Garrison . | . . . . . . . . . . Intercept . | . . . . . . . . . . Searches Triggered . | . . . . . . . . . . Construction Impeded 3 | . . . . . . . 1 . 2 Haulers Reinforced 1 | . . . . . . . . . 1 Active Scanning Responses . | . . . . . . . . . . Cargo Convoy Interrupts . | . . . . . . . . . . Stealth | -11 -10 -10 -10 -9 -8 -8 -7 -7 -6 --------- Run | Jun Mat Min Exi Min Mat Gar Fac Gar Fac Distress Signals 5 | . 1 . . . 3 . . . 1 Communications Jammed . | . . . . . . . . . . Distress Signals . | . . . . . . . . . . Times Spotted 171 | . 17 5 . . 40 33 14 29 33 Peak Tracking Total 12 | . 4 3 . . 6 8 5 8 12 Tactical Retreats 5 | . . . . . 1 3 . 1 . Traps | -11 -10 -10 -10 -9 -8 -8 -7 -7 -6 ------- Run | Jun Mat Min Exi Min Mat Gar Fac Gar Fac Traps Triggered 9 | . 2 . . . 1 2 2 2 . Indirectly . | . . . . . . . . . . Trap Hack Attempts 59 | . . . . . . 4 . 55 . Triggered 1 | . . . . . . . . 1 . Disarmed 2 | . . . . . . 1 . 1 . Reprogrammed 7 | . . . . . . . . 7 . Reused . | . . . . . . . . . . Traps Extracted . | . . . . . . . . . . Installed . | . . . . . . . . . . Triggered 1 | . . 1 . . . . . . . Machines | -11 -10 -10 -10 -9 -8 -8 -7 -7 -6 ---------- Run | Jun Mat Min Exi Min Mat Gar Fac Gar Fac Machines Disabled 32 | . . . . . 7 8 2 8 7 Max in Single Turn 4 | . . . . . 1 2 1 2 4 Garrison Relay 10 | . . . . . . 4 . 6 . Phase Generator 1 | . . . . . . 1 . . . Machines Repaired . | . . . . . . . . . . Machines Sabotaged . | . . . . . . . . . . Overloaded Fab Kills . | . . . . . . . . . . Hacking | -11 -10 -10 -10 -9 -8 -8 -7 -7 -6 --------- Run | Jun Mat Min Exi Min Mat Gar Fac Gar Fac Machines Accessed 40 | . 8 1 1 . 9 5 9 4 3 Terminals 25 | . 7 . . . 5 5 2 4 2 Fabricators 4 | . . . . . . . 3 . 1 Repair Stations 2 | . . . . . . . 2 . . Recycling Units 4 | . 1 . . . 2 . 1 . . Scanalyzers 1 | . . . . . 1 . . . . Garrison Access 2 | . . . . . 1 . 1 . . Total Hacks 113 | . 31 1 1 . 29 12 23 9 7 Successful 54 | . 12 1 1 . 16 5 15 2 2 Failed 59 | . 19 . . . 13 7 8 7 5 Catastrophic 8 | . 1 . . . 2 2 1 2 . Database Lockouts . | . . . . . . . . . . Manual 58 | . 20 . 1 . 20 3 11 2 1 Terminals 79 | . 29 . . . 19 12 6 9 4 Fabricators 7 | . . . . . . . 4 . 3 Repair Stations 5 | . . . . . . . 5 . . Recycling Units 13 | . 2 . . . 5 . 6 . . Scanalyzers 3 | . . . . . 3 . . . . Garrison Access 4 | . . . . . 2 . 2 . . Terminal Hacks 22 | . 9 1 1 . 3 4 2 2 . Robot Analysis 6 | . 4 . . . 2 . . . . Prototype ID Bank 3 | . 3 . . . . . . . . Open Door 3 | . . 1 . . . 1 . 1 . Branch Access Points 1 | . . . . . . . 1 . . Emergency Access Points 1 | . . . . . . 1 . . . Terminal Index 1 | . 1 . . . . . . . . Unreport Threat 2 | . 1 . . . 1 . . . . Zone Layout 1 | . . . . . . . 1 . . Garrison Registry 1 | . . . . . . . . 1 . Patrol Navigation 1 | . . . . . . 1 . . . Security Stations 1 | . . . . . . 1 . . . EX-Prototype ID Bank 1 | . . . 1 . . . . . . Fabricator Hacks 2 | . . . . . . . 1 . 1 Network Status 2 | . . . . . . . 1 . 1 Repair Station Hacks 3 | . . . . . . . 3 . . Scan Component 2 | . . . . . . . 2 . . Repair 1 | . . . . . . . 1 . . Recycling Unit Hacks 5 | . 1 . . . 2 . 2 . . Process 2 | . . . . . 1 . 1 . . Retrieve Matter 2 | . . . . . 1 . 1 . . Retrieve Components 1 | . 1 . . . . . . . . Scanalyzer 2 | . . . . . 2 . . . . Insert Component 1 | . . . . . 1 . . . . Analyze 1 | . . . . . 1 . . . . Garrison Access Hacks 2 | . . . . . 1 . 1 . . Unlock Access 2 | . . . . . 1 . 1 . . Unauthorized Hacks 18 | . 2 . . . 8 1 6 . 1 Terminals 9 | . 2 . . . 5 1 1 . . Assimilate 1 | . 1 . . . . . . . . Botnet 7 | . . . . . 5 1 1 . . Operators 1 | . 1 . . . . . . . . Fabricators 2 | . . . . . . . 1 . 1 Haulers 1 | . . . . . . . . . 1 Recompile 1 | . . . . . . . 1 . . Repair Stations 1 | . . . . . . . 1 . . Mechanics 1 | . . . . . . . 1 . . Recycling Units 5 | . . . . . 2 . 3 . . Reject 2 | . . . . . 1 . 1 . . Recyclers 2 | . . . . . 1 . 1 . . Mask 1 | . . . . . . . 1 . . Scanalyzers 1 | . . . . . 1 . . . . Extract 1 | . . . . . 1 . . . . Garrison Access . | . . . . . . . . . . Data Cores Recovered . | . . . . . . . . . . Used . | . . . . . . . . . . Hacking Detections 34 | . 8 . . . 8 5 6 4 3 Full Trace Events 8 | . 3 . . . 1 1 2 1 . Feedback Events . | . . . . . . . . . . Feedback Blocked . | . . . . . . . . . . Robot Schematics Acquired . | . . . . . . . . . . Robots Built . | . . . . . . . . . . Authchips . | . . . . . . . . . . Time . | . . . . . . . . . . Total Robot Build Rating . | . . . . . . . . . . Part Schematics Acquired 3 | . . . . . 3 . . . . Parts Built . | . . . . . . . . . . Authchips . | . . . . . . . . . . Time . | . . . . . . . . . . Total Part Build Rating . | . . . . . . . . . . Parts Repaired 1 | . . . . . . . 1 . . Time 61 | . . . . . . . 61 . . Parts Recycled . | . . . . . . . . . . Recycled Matter 282 | . . . . . 227 . 55 . . Retrieved Matter 483 | . . . . . 428 . 55 . . Retrieved Components 2 | . 2 . . . . . . . . Parts Scanalyzed 1 | . . . . . 1 . . . . Part Schematics Acquired 1 | . . . . . 1 . . . . Parts Damaged . | . . . . . . . . . . Bothacking | -11 -10 -10 -10 -9 -8 -8 -7 -7 -6 ------------ Run | Jun Mat Min Exi Min Mat Gar Fac Gar Fac Used RIF Installer . | . . . . . . . . . . Robots Hacked . | . . . . . . . . . . Non-combat . | . . . . . . . . . . Combat . | . . . . . . . . . . Robot Hacks Applied . | . . . . . . . . . . Relay Couplers Released 43 | . . . . . . 14 4 25 . Machine Destruction 39 | . . . . . . 14 . 25 . Programmers 4 | . . . . . . . 4 . . Fabnet Peak Effective % . | . . . . . . . . . . Robots Rewired 9 | . . . . . . 8 . . 1 Allies Hacked . | . . . . . . . . . . Hacks Repelled . | . . . . . . . . . . Allies | -11 -10 -10 -10 -9 -8 -8 -7 -7 -6 -------- Run | Jun Mat Min Exi Min Mat Gar Fac Gar Fac Total Allies 14 | . 1 . . . . 8 . 4 1 Largest Group 6 | . 1 1 1 1 1 6 . 2 1 Highest-Rated Group 157 | . 10 10 10 10 10 90 . 157 27 Highest-Rated Ally 95 | . 10 10 10 10 10 39 . 95 27 Total Orders 1 | . . . . . . . . . 1 DROP 1 | . . . . . . . . . 1 Ally Attacks 53 | . . . . . . 37 . 16 . Total Damage 1393 | . . . . . . 592 . 801 . Kills 11 | . . . . . . 6 . 5 . Allies Corrupted . | . . . . . . . . . . Allies Melted . | . . . . . . . . . . Intel | -11 -10 -10 -10 -9 -8 -8 -7 -7 -6 ------- Run | Jun Mat Min Exi Min Mat Gar Fac Gar Fac Robot Analysis Total 6 | . 4 . . . 2 . . . . Derelict Logs Recovered 1 | . . . . 1 . . . . . Drone Launches . | . . . . . . . . . . Drone Recoveries . | . . . . . . . . . . Exploration | -11 -10 -10 -10 -9 -8 -8 -7 -7 -6 ------------- Run | Jun Mat Min Exi Min Mat Gar Fac Gar Fac Turns Passed 8716 | 65 798 275 341 157 2587 1142 1333 1394 624 Spaces Moved 5045 | 44 402 150 212 99 960 790 1013 1046 329 Core 30 | 18 . . . . . . . . 12 Treads 1753 | 26 402 150 212 99 864 . . . . Legs 3262 | . . . . . 96 790 1013 1046 317 Wheels . | . . . . . . . . . . Hover . | . . . . . . . . . . Flight . | . . . . . . . . . . Fastest Speed 45 | 50 160 160 160 160 90 100 100 90 45 Average Speed 126 | 115 160 160 160 160 185 100 104 94 93 Slowest Speed 1050 | 160 160 160 160 160 250 100 105 105 1050 Overloaded Moves 41 | . . . . . . . . . 41 Propulsion Burnouts . | . . . . . . . . . . Robots Hopped . | . . . . . . . . . . Cave-ins Triggered 1 | . . . . . . . . . 1 Exploration Rate (%) 49 | 4 66 40 61 42 67 90 26 92 11 Regions Visited 9 Branch Regions 3 Pre-discovered Areas . | . . . . . . . . . . Known Exits Taken 2 | . . . . . 1 . 1 . . Unknown Exits Taken 5 | 1 1 1 1 1 . . . . . Scrap Searched . | . . . . . . . . . . Spaces Dug 9 | . . . . . 1 . 6 . 2 Terrain Destroyed 240 | . . . . . 63 11 20 53 93 Melee . | . . . . . . . . . . Projectile 72 | . . . . . 46 4 10 . 12 AOE 166 | . . . . . 17 7 10 51 81 Terrain Rammed . | . . . . . . . . . . Walls Destroyed . | . . . . . . . . . . Machines Disabled . | . . . . . . . . . . Actions | -11 -10 -10 -10 -9 -8 -8 -7 -7 -6 --------- Run | Jun Mat Min Exi Min Mat Gar Fac Gar Fac Total 6703 | 58 483 167 214 98 1560 1027 1232 1328 536 Wait 854 | . 14 6 1 . 416 89 142 81 105 Move 5036 | 43 401 149 211 98 959 789 1012 1045 329 Hop . | . . . . . . . . . . Pick Up 124 | 8 17 2 2 . 36 4 20 23 12 Fast Attach . | . . . . . . . . . . Attach 70 | 6 3 1 . . 19 . 9 9 23 Detach 4 | . . . . . 1 . 1 . 2 Swap 67 | 1 4 . . . 15 7 8 24 8 Drop 68 | . 6 . . . 21 4 12 20 5 Fire 337 | . 38 9 . . 92 56 26 67 49 Melee . | . . . . . . . . . . Ram 1 | . . . . . . . . . 1 Kick . | . . . . . . . . . . Crush 1 | . . . . . 1 . . . . Escape Stasis 6 | . . . . . . . 2 4 . Rewire 76 | . . . . . . 74 . . 2 Trap 59 | . . . . . . 4 . 55 . Miscellaneous . | . . . . . . . . . . Route ------- -11/Junkyard -10/Materials -10/Mines (discovered 2 exits: [*Mat] / *Exi) -10/Exiles (discovered 2 exits: [*Min x2]) -9/Mines -8/Materials (discovered 4 exits: *Fac x2 / [*Sto] / Gar) -8/Garrison (discovered 2 exits: *Fac x2) -7/Factory (discovered 3 exits: Low x2 / Gar) -7/Garrison (discovered 3 exits: *Fac x3) -6/Factory (discovered 1 exit: [*Fac]) History --------- Turn | Location | Event 7 | -11/Junkyard | Discovered new exit (range 16) 66 | -11/Junkyard | Entered Materials 324 | -10/Materials | Discovered new exit (range 9) 337 | -10/Materials | Build established: Mutant 864 | -10/Materials | Entered Mines 864 | -10/Mines | Accompanied by 1 ally 909 | -10/Mines | Discovered new exit (range 9) 987 | -10/Mines | Found the Drone Emporium 997 | -10/Mines | Found Prototype Device 1042 | -10/Mines | Core integrity fell below 50% 1127 | -10/Mines | Deemed a non-threat by the Exiles lab entrance 1129 | -10/Mines | Discovered new exit (range 5) 1139 | -10/Mines | Entered Exiles 1139 | -10/Exiles | Accompanied by 1 ally 1160 | -10/Exiles | Discovered new exit (range 15) 1183 | -10/Exiles | Met 8R-AWN 1205 | -10/Exiles | Met EX-HEX 1252 | -10/Exiles | Met EX-BIN 1272 | -10/Exiles | Aligned with FarCom system 1273 | -10/Exiles | Given EX-Vault access code 1312 | -10/Exiles | Opened EX-Vault 1324 | -10/Exiles | Found Potential Leg 1327 | -10/Exiles | Found Potential Leg 1362 | -10/Exiles | Warned to stay clear of 0b10 Research branches 1379 | -10/Exiles | Exiles lab attacked by MAIN.C 1464 | -10/Exiles | Discovered new exit (range 11) 1480 | -10/Exiles | Left Exiles lab with Potential Leg 1480 | -10/Exiles | Entered Mines 1480 | -9/Mines | Accompanied by 1 ally 1607 | -9/Mines | Learned Materials terminal intel 1613 | -9/Mines | Discovered new exit (range 15) 1637 | -9/Mines | Entered Materials 1637 | -8/Materials | Accompanied by 1 ally 1637 | -8/Materials | Evolved 4 slots: Propulsion x1, Utility x2, Weapon x1 1637 | -8/Materials | Identified Sensor Drone Bay 1638 | -8/Materials | Loaded intel: 12 terminal locations 1840 | -8/Materials | Lost 3 parts (1p1n1w) 1846 | -8/Materials | Discovered new exit (range 4) 2195 | -8/Materials | Build established: Scavenger-Skirmisher 2877 | -8/Materials | Discovered new exit (range 13) 4142 | -8/Materials | Discovered new exit (range 15) 4223 | -8/Materials | Identified exit to Garrison 4224 | -8/Materials | Entered Garrison 4383 | -8/Garrison | Phase Generator disabled 4444 | -8/Garrison | Learned Factory security intel 4582 | -8/Garrison | Triggered checkpoint 4603 | -8/Garrison | Garrison Relay disabled 4694 | -8/Garrison | Triggered checkpoint 4732 | -8/Garrison | Discovered new exit (range 10) 4786 | -8/Garrison | Garrison Relay disabled 4834 | -8/Garrison | Triggered checkpoint 5056 | -8/Garrison | Garrison Relay disabled 5076 | -8/Garrison | Triggered checkpoint 5132 | -8/Garrison | Triggered checkpoint 5142 | -8/Garrison | Garrison Relay disabled 5186 | -8/Garrison | Triggered checkpoint 5262 | -8/Garrison | Triggered checkpoint 5304 | -8/Garrison | Discovered new exit (range 11) 5334 | -8/Garrison | Triggered checkpoint 5366 | -8/Garrison | Entered Factory 5366 | -7/Factory | Evolved 2 slots: Propulsion x1, Utility x1 5570 | -7/Factory | Found Prototype Launcher 5571 | -7/Factory | Identified Rocket Array 5671 | -7/Factory | Build established: Scavenger-Gunner 5766 | -7/Factory | First assault squad dispatched 5939 | -7/Factory | Repaired Broken Imp. Cooling System 6338 | -7/Factory | Identified exit to Lower Caves 6697 | -7/Factory | Identified exit to Garrison 6699 | -7/Factory | Entered Garrison 6796 | -7/Garrison | Triggered checkpoint 6833 | -7/Garrison | Garrison Relay disabled 6844 | -7/Garrison | Found embedded Infiltrators 6946 | -7/Garrison | Triggered checkpoint 6947 | -7/Garrison | Triggered checkpoint 7012 | -7/Garrison | Destroyed 9 combat bots 7020 | -7/Garrison | Triggered checkpoint 7033 | -7/Garrison | Garrison Relay disabled 7086 | -7/Garrison | Discovered new exit (range 14) 7210 | -7/Garrison | Rescued a captive Derelict 7211 | -7/Garrison | Rescued a captive Derelict 7350 | -7/Garrison | Garrison Relay disabled 7360 | -7/Garrison | Garrison Relay disabled 7576 | -7/Garrison | Discovered new exit (range 10) 7624 | -7/Garrison | Triggered checkpoint 7807 | -7/Garrison | Discovered new exit (range 19) 7807 | -7/Garrison | Discovered new exit (range 49) 7807 | -7/Garrison | Discovered new exit (range 56) 7962 | -7/Garrison | Triggered checkpoint 7971 | -7/Garrison | Garrison Relay disabled 8093 | -7/Garrison | Entered Factory 8093 | -6/Factory | Evolved 2 slots: Power x1, Utility x1 8150 | -6/Factory | Discovered new exit (range 8) 8377 | -6/Factory | System corruption reached 10% 8443 | -6/Factory | First assault squad dispatched 8534 | -6/Factory | Crushed by falling debris 8551 | -6/Factory | Destroyed 8 combat bots 8594 | -6/Factory | Lost 7 parts (1p1n3u2w) 8656 | -6/Factory | Destroyed 9 combat bots 8667 | -6/Factory | Core integrity fell below 50% 8689 | -6/Factory | Core integrity fell below 20% 8717 | -6/Factory | Destroyed by G-67 Veteran with Field Laser Last Messages --------------- 08705_ Acquired 32 matter. 08706_ K-01 Serf collects debris. 08706_ Acquired Rnf. Deuterium Engine. 08707_ U-05 Engineer lays Concrete. 08708_ K-01 Serf collects debris. 08708_ Gravity Neutralizer destroyed. 08708_ U-05 Engineer lays Concrete. 08708_ Acquired 63 matter. 08709_ U-05 Engineer lays Concrete. 08710_ K-01 Serf collects debris. 08711_ U-05 Engineer lays Concrete. 08711_ K-01 Serf collects debris. 08712_ U-05 Engineer lays Concrete. 08714_ The unstable cave ceiling collapses. 08714_ Hacking Suite destroyed. 08714_ Acquired 3 matter. 08714_ K-01 Serf collects debris. 08715_ U-05 Engineer lays Concrete. 08715_ K-01 Serf collects debris. 08716_ U-05 Engineer lays Concrete. Map ----- +----------------------------------------------------+ | ??????????????"?"?"?"?"??????????????????????????? | | ??????????????"?"?"?"?"??????????????????????????? | | ??????????????"?"?"?"?"??????????????????????????? | | ??????????????"?"?"?"?"??????????????????????????? | | ??????????????"?"?"?"?"??????????????????????????? | | ??????????????"?"?"?"?"??????????????????????????? | | ??????????????"?"?"?"?"??????????????????????????? | | ??????????????"?"?"?"?"??????????????????????????? | | ?????????????????????????????????????????????????? | | ?????????????????????????????????????????????????? | | ??????????????? ????????????????????????????????? | | ?????????? ? ? ??????BB????????????????????????? | | ?????????? """ """??BB????????????????????????? | | ?????????? """ """ ??????????????????????????? | | ?????????? """ """ #?????????????????????????? | | ??????????# #?????????????##??????????? | | ??????????# #?????######## #??????????? | | ???"""????# ! #????## # ##?????????? | | ???"""????# ###### # #?????????? | | ???"""????# !!! # #?????????? | | ???????""?# !!! # #??????????? | | ???"""?""?# !!% = ! ##?????????? | | ???"""?F"?# *! ! %k #?????????? | | ???"""?""?# #[%[g[ = ! ## #?????????? | | ??????????#"" %+=!% ! k #?????????? | | ??????????#"T %#%@ = #?????????? | | ??????????#""" [+=% u ####?????????? | | ??????????# *!%#% #????????????? | | ??????????# ! !# #????????????? | | ?????######## # ; #????????????? | | ?????#* s s= % ; #????????????? | | ?????# s s*% # ### ;####????????????? | | ?????# ! """%# #####+###[[ ###???????????????? | | ?????# """ # ### # ##?????????????????? | | ?????# ! """!# #?" """ # ###??????????????????? | | ?????# ![* "[=# ### """" # #???????????????????? | | ?????# ! * "!!# "## """" # #???????????????????? | | ?????# *= ! ]# ### """" ####???????????????????? | | ?????###########A#?# ###????????????????????? | | ???????????????#%#?########??????????????????????? | | ???????????????# #???????????????????????????????? | | ???????????????# #???????????????????????????????? | | ??????????######/##??????????????????????????????? | | ??????????# "%"#??????????????????????????????? | | ??????????# " #????"""?"""???????????????????? | | ??????????# #????"""?"""???????????????????? | | ########### """#????"""?"""???????????????????? | | [ # """#??????????????????????????????? | | # """#????"""?"""???????????????????? | | " # * ""#????"""?"""???????????????????? | +----------------------------------------------------+ Best States ------------- Heat Dissipation 91 Energy Generation 41 Energy Capacity 500 Matter Stores 300 Matter Capacity 300 Sight Range 22 Terrain Scan Range 14 Terrain Scan Density 10 Armor Coverage 225 Resistance: KI 20 Power Shielding 33 Evasion (%) 57 Targeting Accuracy 8 Core Analysis 6 Recoil Reduction 3 Offensive Hacking 10 Defensive Hacking 10 Authchip Count 1 Item Schematics ----------------- Hcp. Matter Pod | -8/Materials | Scanalyzed Adv. Visual Processing Unit | -8/Materials | Extracted Adv. Weight Redist. System | -8/Materials | Extracted Robot Schematics ------------------ None Fabricated ------------ Nothing Alien Tech Used ----------------- None Achievements -------------- None Challenges ------------ None Game ------ Seed SpikedFluxHumpback Manual? 0 Play Time 01:23:31 Cumulative 125.8 hours Start 2023.03.19 @ 19:20:54 End 2023.03.26 @ 23:35:41 Sessions 3 Manual Loads 0 Difficulty Rogue Special Mode None Game No. 122 Rogue 122 Adventurer 0 Explorer 0 Win Type - Total 1 Types 1/0/0/0/0/0/0/0/0 Lore% 44 Gallery% 60 Achievement% 49 Wizard Run 0 Options --------- ASCII 0 Keyboard 0 Movement Numpad Keybinds 0 Fullscreen 2 Font 18/Smallcaps Map View 76x50 Tactical HUD 1 Map Filters NONE Filters NONE Steam 1 RUN: 5c218fd3-aff9-48ae-ad7d-41bbcbae9f89